{"text_format":"3","workbook":"xlsx","n_sheets":2,"sheets":["Inicio","Presupuesto para el feriado..."],"not_rendered":{"defined_names":1},"read":"whole","date_system":"1900"}

{"sheet":"Inicio","index":0,"n_rows":4,"n_cols":2,"rows_kept":4}
[null,"Cómo usar esta plantilla"]
[null,"Realice un seguimiento de los gastos con este planificador de presupuesto para el feriado planificador."]
[null,"Para empezar, escriba su Presupuesto y gastos reales de cada tabla de categorías."]
[null,"El presupuesto para el feriado, la cantidad real total gastada y la diferencia se calculan automáticamente."]

{"sheet":"Presupuesto para el feriado...","index":1,"n_rows":36,"n_cols":14,"rows_kept":36,"merged":[[0,2,5,7],[2,10,2,11],[8,2,8,5],[8,10,8,13],[18,2,18,5],[18,10,18,13],[29,2,29,5],[29,10,29,13]]}
[null,null,"Presupuesto para el feriado \nPlanificador"]
[]
[{"$nulls":10},"PRESUPUESTO PARA EL FERIADO",null,null,{"$f":"SUM(Regalos[Presupuesto],Empaquetado[Presupuesto],(Viaje[Presupuesto],(Comidas[Presupuesto],(Entretenimiento[Presupuesto],Varios[Presupuesto]))))","v":{"v":750,"d":"$750.00"}}]
[{"$nulls":10},"GASTOS REALES",null,null,{"$f":"SUM((Regalos[Real],(Empaquetado[Real],(Viaje[Real],(Comidas[Real],(Entretenimiento[Real],(Varios[Real])))))))","v":{"v":820,"d":"$820.00"}}]
[]
[{"$nulls":10},"DIFERENCIA (por encima o por debajo del presupuesto)",null,null,{"$f":"SUM(N3-N4)","v":{"v":-70,"d":"-$70.00"}}]
[]
[]
[null,null,"REGALOS",{"$nulls":7},"COMIDAS DE VACACIONES"]
[null,null,"Artículo","Presupuesto","Real","Diferencia",{"$nulls":4},"Artículo","Presupuesto","Real","Diferencia"]
[null,null,"Familia",{"v":500,"d":"$500.00"},{"v":495,"d":"$495.00"},{"$f":"Regalos[[#This Row],[Presupuesto]]-Regalos[[#This Row],[Real]]","v":{"v":5,"d":"$5.00"}},{"$nulls":4},"Alimentos",null,null,{"$f":"Comidas[[#This Row],[Presupuesto]]-Comidas[[#This Row],[Real]]","v":{"v":0,"d":"$0.00"}}]
[null,null,"Amigos",{"v":250,"d":"$250.00"},{"v":325,"d":"$325.00"},{"$f":"Regalos[[#This Row],[Presupuesto]]-Regalos[[#This Row],[Real]]","v":{"v":-75,"d":"-$75.00"}},{"$nulls":4},"Bebidas",null,null,{"$f":"Comidas[[#This Row],[Presupuesto]]-Comidas[[#This Row],[Real]]","v":{"v":0,"d":"$0.00"}}]
[null,null,"Compañeros de trabajo",null,null,{"$f":"Regalos[[#This Row],[Presupuesto]]-Regalos[[#This Row],[Real]]","v":{"v":0,"d":"$0.00"}},{"$nulls":4},"Decoraciones",null,null,{"$f":"Comidas[[#This Row],[Presupuesto]]-Comidas[[#This Row],[Real]]","v":{"v":0,"d":"$0.00"}}]
[null,null,"Profesores, niñeras, etc.",null,null,{"$f":"Regalos[[#This Row],[Presupuesto]]-Regalos[[#This Row],[Real]]","v":{"v":0,"d":"$0.00"}},{"$nulls":4},"Otros (presione la tecla Tab en la última columna de esta fila para agregar una fila nueva)",null,null,{"$f":"Comidas[[#This Row],[Presupuesto]]-Comidas[[#This Row],[Real]]","v":{"v":0,"d":"$0.00"}}]
[null,null,"Donaciones benéficas",null,null,{"$f":"Regalos[[#This Row],[Presupuesto]]-Regalos[[#This Row],[Real]]","v":{"v":0,"d":"$0.00"}},{"$nulls":7},{"$f":"Comidas[[#This Row],[Presupuesto]]-Comidas[[#This Row],[Real]]","v":{"v":0,"d":"$0.00"}}]
[null,null,"Otros (presione la tecla Tab en la última columna de esta fila para agregar una fila nueva)",null,null,{"$f":"Regalos[[#This Row],[Presupuesto]]-Regalos[[#This Row],[Real]]","v":{"v":0,"d":"$0.00"}}]
[null,null,"Total",{"$f":"SUBTOTAL(109,Regalos[Presupuesto])","v":{"v":750,"d":"$750.00"}},{"$f":"SUBTOTAL(109,Regalos[Real])","v":{"v":820,"d":"$820.00"}},{"$f":"SUBTOTAL(109,Regalos[Diferencia])","v":{"v":-70,"d":"-$70.00"}},{"$nulls":4},"Total",{"$f":"SUBTOTAL(109,Comidas[Presupuesto])","v":{"v":0,"d":"$0.00"}},{"$f":"SUBTOTAL(109,Comidas[Real])","v":{"v":0,"d":"$0.00"}},{"$f":"SUBTOTAL(109,Comidas[Diferencia])","v":{"v":0,"d":"$0.00"}}]
[]
[null,null,"EMPAQUETADO",{"$nulls":7},"ENTRETENIMIENTO"]
[null,null,"Artículo","Presupuesto","Real","Diferencia",{"$nulls":4},"Artículo","Presupuesto","Real","Diferencia"]
[null,null,"Papel de envolver",null,null,{"$f":"Empaquetado[[#This Row],[Presupuesto]]-Empaquetado[[#This Row],[Real]]","v":{"v":0,"d":"$0.00"}},{"$nulls":4},"Ayuda para la fiesta (camareros, catering, limpiadores, etc.)",null,null,{"$f":"Entretenimiento[[#This Row],[Presupuesto]]-Entretenimiento[[#This Row],[Real]]","v":{"v":0,"d":"$0.00"}}]
[null,null,"Etiquetas",null,null,{"$f":"Empaquetado[[#This Row],[Presupuesto]]-Empaquetado[[#This Row],[Real]]","v":{"v":0,"d":"$0.00"}},{"$nulls":4},"Decoraciones",null,null,{"$f":"Entretenimiento[[#This Row],[Presupuesto]]-Entretenimiento[[#This Row],[Real]]","v":{"v":0,"d":"$0.00"}}]
[null,null,"Material (lazos, cinta adhesiva, etc.)",null,null,{"$f":"Empaquetado[[#This Row],[Presupuesto]]-Empaquetado[[#This Row],[Real]]","v":{"v":0,"d":"$0.00"}},{"$nulls":4},"Comida y bebidas",null,null,{"$f":"Entretenimiento[[#This Row],[Presupuesto]]-Entretenimiento[[#This Row],[Real]]","v":{"v":0,"d":"$0.00"}}]
[null,null,"Cajas",null,null,{"$f":"Empaquetado[[#This Row],[Presupuesto]]-Empaquetado[[#This Row],[Real]]","v":{"v":0,"d":"$0.00"}},{"$nulls":4},"Ropa",null,null,{"$f":"Entretenimiento[[#This Row],[Presupuesto]]-Entretenimiento[[#This Row],[Real]]","v":{"v":0,"d":"$0.00"}}]
[null,null,"Gastos de envío",null,null,{"$f":"Empaquetado[[#This Row],[Presupuesto]]-Empaquetado[[#This Row],[Real]]","v":{"v":0,"d":"$0.00"}},{"$nulls":4},"Entradas",null,null,{"$f":"Entretenimiento[[#This Row],[Presupuesto]]-Entretenimiento[[#This Row],[Real]]","v":{"v":0,"d":"$0.00"}}]
[null,null,"Otros (presione la tecla Tab en la última columna de esta fila para agregar una fila nueva)",null,null,{"$f":"Empaquetado[[#This Row],[Presupuesto]]-Empaquetado[[#This Row],[Real]]","v":{"v":0,"d":"$0.00"}},{"$nulls":4},"Comidas fuera de casa",null,null,{"$f":"Entretenimiento[[#This Row],[Presupuesto]]-Entretenimiento[[#This Row],[Real]]","v":{"v":0,"d":"$0.00"}}]
[{"$nulls":10},"Otros (presione la tecla Tab en la última columna de esta fila para agregar una fila nueva)",null,null,{"$f":"Entretenimiento[[#This Row],[Presupuesto]]-Entretenimiento[[#This Row],[Real]]","v":{"v":0,"d":"$0.00"}}]
[null,null,"Total",{"$f":"SUBTOTAL(109,Empaquetado[Presupuesto])","v":{"v":0,"d":"$0.00"}},{"$f":"SUBTOTAL(109,Empaquetado[Real])","v":{"v":0,"d":"$0.00"}},{"$f":"SUBTOTAL(109,Empaquetado[Diferencia])","v":{"v":0,"d":"$0.00"}},{"$nulls":4},"Total",{"$f":"SUBTOTAL(109,Entretenimiento[Presupuesto])","v":{"v":0,"d":"$0.00"}},{"$f":"SUBTOTAL(109,Entretenimiento[Real])","v":{"v":0,"d":"$0.00"}},{"$f":"SUBTOTAL(109,Entretenimiento[Diferencia])","v":{"v":0,"d":"$0.00"}}]
[]
[null,null,"VIAJE",{"$nulls":7},"VARIOS"]
[null,null,"Artículo","Presupuesto","Real","Diferencia",{"$nulls":4},"Artículo","Presupuesto","Real","Diferencia"]
[null,null,"Tarifa aérea",null,null,{"$f":"Viaje[[#This Row],[Presupuesto]]-Viaje[[#This Row],[Real]]","v":{"v":0,"d":"$0.00"}},{"$nulls":4},"Fotos del feriado",null,null,{"$f":"Varios[[#This Row],[Presupuesto]]-Varios[[#This Row],[Real]]","v":{"v":0,"d":"$0.00"}}]
[null,null,"Alojamiento",null,null,{"$f":"Viaje[[#This Row],[Presupuesto]]-Viaje[[#This Row],[Real]]","v":{"v":0,"d":"$0.00"}},{"$nulls":4},"Combustible ",null,null,{"$f":"Varios[[#This Row],[Presupuesto]]-Varios[[#This Row],[Real]]","v":{"v":0,"d":"$0.00"}}]
[null,null,"Transporte",null,null,{"$f":"Viaje[[#This Row],[Presupuesto]]-Viaje[[#This Row],[Real]]","v":{"v":0,"d":"$0.00"}},{"$nulls":4},"Otros (presione la tecla Tab en la última columna de esta fila para agregar una fila nueva)",null,null,{"$f":"Varios[[#This Row],[Presupuesto]]-Varios[[#This Row],[Real]]","v":{"v":0,"d":"$0.00"}}]
[null,null,"Otros (presione la tecla Tab en la última columna de esta fila para agregar una fila nueva)",null,null,{"$f":"Viaje[[#This Row],[Presupuesto]]-Viaje[[#This Row],[Real]]","v":{"v":0,"d":"$0.00"}}]
[null,null,"Total",{"$f":"SUBTOTAL(109,Viaje[Presupuesto])","v":{"v":0,"d":"$0.00"}},{"$f":"SUBTOTAL(109,Viaje[Real])","v":{"v":0,"d":"$0.00"}},{"$f":"SUBTOTAL(109,Viaje[Diferencia])","v":{"v":0,"d":"$0.00"}},{"$nulls":4},"Total",{"$f":"SUBTOTAL(109,Varios[Presupuesto])","v":{"v":0,"d":"$0.00"}},{"$f":"SUBTOTAL(109,Varios[Real])","v":{"v":0,"d":"$0.00"}},{"$f":"SUBTOTAL(109,Varios[Diferencia])","v":{"v":0,"d":"$0.00"}}]